bitfinex/quotes_SOLUSD_20250401
["timestamp","ask_amount","ask_price","bid_price","bid_amount"]
[1743497563022,17.80395006,129.76,129.74,0.0001]
[1743497563424,17.80395006,129.77,129.74,0.28442314]
[1743497563919,17.80395006,129.75,129.74,0.0001]
[1743497565507,17.80395006,129.75,129.74,7.7201]
[1743497566321,17.80395006,129.77,129.74,27.7201]
[1743497567119,17.80395006,129.76,129.74,27.7201]
[1743497567721,17.80395006,129.76,129.74,7.7201]
[1743497568025,17.80395006,129.75,129.74,7.7201]
[1743497568724,17.80395006,129.76,129.74,7.7201]
[1743497568918,17.80395006,129.77,129.74,35.4277]
[1743497570229,17.80395006,129.78,129.76,20.0]
[1743497570432,99.50395006,129.79,129.76,20.0]
[1743497571436,0.03,129.75,129.74,28.00442314]
[1743497571930,0.03,129.75,129.74,35.71212314]
[1743497573039,0.03,129.75,129.74,28.00442314]
[1743497575039,0.03,129.75,129.74,8.00442314]
[1743497575927,0.03,129.75,129.74,7.7201]
[1743497576123,17.83395006,129.75,129.74,0.0001]
[1743497577937,25.54105006,129.75,129.74,0.0001]
[1743497578816,17.83395006,129.75,129.74,0.0001]
[1743497579016,25.54105006,129.75,129.74,0.0001]
[1743497583843,18.87495304,129.75,129.74,0.0001]
[1743497588168,11.16785304,129.75,129.74,0.0001]
[1743497588341,0.03,129.75,129.74,0.0001]
[1743497588830,31.16785304,129.75,129.74,0.0001]
[1743497589436,38.87495304,129.75,129.74,0.0001]
[1743497591124,57.5246019,129.75,129.74,0.0001]
[1743497595460,20.0,129.71,129.69,0.063]
[1743497595650,29.7875019,129.7,129.69,0.0001]
[1743497596146,37.4976019,129.7,129.69,0.0001]
[1743497600271,18.84795304,129.7,129.69,0.0001]
[1743497600472,18.84795304,129.7,129.69,7.7001]
[1743497600473,92.83785304,129.7,129.69,7.7001]
[1743497601861,100.54795304,129.7,129.69,7.7001]
[1743497606277,92.83785304,129.7,129.69,7.7001]
[1743497606455,92.86785304,129.7,129.69,7.7001]
[1743497606851,100.57795304,129.7,129.69,7.7001]
[1743497607876,92.86785304,129.7,129.69,7.7001]
[1743497608377,100.57795304,129.7,129.69,7.7001]
[1743497609779,18.87795304,129.7,129.69,7.7001]
[1743497610276,37.5276019,129.7,129.69,0.0001]
[1743497610459,37.5276019,129.7,129.66,0.063]
[1743497610460,20.0,129.67,129.66,0.063]
[1743497610655,31.13785304,129.67,129.66,0.063]
[1743497611868,60.92535494,129.67,129.66,0.063]
[1743497612379,38.84965304,129.67,129.66,0.063]
[1743497612766,20.0,129.67,129.66,0.063]
[1743497613079,31.13785304,129.67,129.66,0.063]
[1743497613320,38.84965304,129.67,129.66,0.063]
[1743497614481,31.13785304,129.67,129.66,0.063]
[1743497615283,38.84965304,129.67,129.66,0.063]
[1743497617893,31.13785304,129.67,129.66,0.063]
[1743497618677,38.84965304,129.67,129.66,0.063]
[1743497619106,31.13785304,129.67,129.66,0.063]
[1743497619807,38.84965304,129.67,129.66,0.063]
[1743497620789,68.63715494,129.67,129.66,0.063]
[1743497623107,38.84965304,129.67,129.66,0.063]
[1743497624713,31.13785304,129.67,129.66,0.063]
[1743497625506,7.7408,129.69,129.66,0.063]
[1743497625686,11.13785304,129.68,129.66,0.063]
[1743497629087,20.03,129.69,129.66,0.063]
[1743497629292,11.13785304,129.68,129.66,0.063]
[1743497633914,7.13342922,129.68,129.66,0.063]
[1743497636417,7.13342922,129.67,129.66,0.063]
[1743497637000,7.13342922,129.67,129.66,28.04732314]
[1743497637314,7.13342922,129.67,129.66,8.04732314]
[1743497639723,7.13342922,129.67,129.66,7.763]
[1743497640698,14.84522922,129.67,129.66,7.763]
[1743497640899,7.13342922,129.67,129.66,7.763]
[1743497642500,7.13342922,129.68,129.66,7.763]
[1743497642699,7.13342922,129.68,129.66,27.763]
[1743497644321,0.03,129.69,129.67,0.28432314]
[1743497644506,0.03,129.69,129.68,21.85982314]
[1743497644706,0.03,129.7,129.69,0.28432314]
[1743497644927,0.03,129.75,129.74,20.28432314]
[1743497645127,0.03,129.75,129.74,29.60372314]
[1743497646497,0.03,129.75,129.74,37.31142314]
[1743497646920,81.7,129.8,129.79,20.28432314]
[1743497647224,81.73,129.82,129.79,27.96432314]
[1743497647418,88.86342922,129.82,129.8,0.28432314]
[1743497647807,92.85117185,129.82,129.8,0.28432314]
[1743497649118,11.12117185,129.81,129.79,7.68]
[1743497649324,92.82117185,129.8,129.79,7.68]
[1743497649701,81.7,129.8,129.79,7.68]
[1743497649909,81.7,129.8,129.79,7.96432314]
[1743497650308,0.03,129.82,129.8,20.28432314]
[1743497652438,11.12117185,129.81,129.79,7.68]
[1743497653127,11.12117185,129.8,129.77,7.68]
[1743497653312,11.12117185,129.78,129.77,7.68]
[1743497653707,11.12117185,129.78,129.74,20.28432314]
[1743497654009,11.12117185,129.76,129.75,7.68]
[1743497654721,92.82117185,129.77,129.75,7.68]
[1743497655119,100.52707185,129.77,129.75,7.68]
[1743497655343,0.03,129.76,129.75,7.68]
[1743497656129,11.15117185,129.76,129.75,7.68]
[1743497656720,18.85767185,129.76,129.75,7.68]
[1743497657522,11.15117185,129.76,129.75,7.68]
[1743497657715,0.03,129.76,129.75,7.68]
[1743497658124,18.85767185,129.76,129.72,20.0]
[1743497658420,18.82827185,129.75,129.73,7.68]
[1743497658626,92.82117185,129.75,129.73,7.68]
[1743497660519,100.52827185,129.75,129.73,7.68]
[1743497660726,11.12117185,129.74,129.73,7.68]
[1743497660920,81.7,129.73,129.7,20.0]
[1743497661125,11.12117185,129.71,129.69,7.96432314]
[1743497661521,11.12117185,129.71,129.69,0.28432314]
[1743497661724,11.12117185,129.7,129.69,0.28432314]
[1743497662042,11.12117185,129.7,129.69,7.68]
[1743497662411,18.83127185,129.7,129.69,7.68]
[1743497662938,37.48092071,129.7,129.69,7.68]
[1743497663839,37.48092071,129.7,129.66,0.063]
[1743497664041,11.12117185,129.67,129.66,7.743]
[1743497664414,11.12117185,129.68,129.67,20.28432314]
[1743497664619,81.7,129.69,129.67,20.28432314]
[1743497668946,81.75,129.69,129.67,20.28432314]
[1743497669136,81.75,129.69,129.67,27.99602314]
[1743497669137,0.05,129.69,129.67,27.99602314]
[1743497669323,0.05,129.69,129.68,6.55732314]
[1743497670146,0.05,129.69,129.68,0.28432314]
[1743497670656,11.17117185,129.69,129.68,0.28432314]
[1743497671159,0.05,129.69,129.68,0.28432314]
[1743497671830,0.05,129.69,129.68,7.99552314]
[1743497674341,81.7,129.72,129.71,20.14216157]
[1743497674522,81.7,129.72,129.71,27.82216157]
[1743497676723,81.7,129.72,129.71,27.96432314]
[1743497677958,92.82117185,129.72,129.71,7.68]
[1743497679332,81.7,129.71,129.68,0.28432314]
[1743497679643,92.82117185,129.7,129.69,7.68]
[1743497681749,81.7,129.7,129.69,27.96432314]
[1743497682827,92.82117185,129.7,129.68,0.063]
[1743497683022,18.83017185,129.72,129.69,7.68]
[1743497683261,11.12117185,129.7,129.69,7.68]
[1743497683551,18.83147185,129.7,129.69,7.68]
[1743497684931,18.83147185,129.7,129.68,7.743]
[1743497685135,11.12117185,129.69,129.68,7.743]
[1743497686532,11.12117185,129.7,129.68,27.743]
[1743497687547,11.12117185,129.71,129.68,27.743]
[1743497688380,81.7,129.69,129.68,28.02732314]
[1743497689168,81.7,129.69,129.68,35.73852314]
[1743497689367,81.7,129.69,129.68,29.66762314]
[1743497690048,81.7,129.72,129.7,20.0]
[1743497691148,92.82117185,129.72,129.7,20.0]
[1743497691542,11.12117185,129.71,129.69,0.28432314]
[1743497691760,81.7,129.72,129.7,7.66]
[1743497691761,100.53017185,129.72,129.7,7.66]
[1743497692478,89.409,129.72,129.7,7.66]
[1743497692979,11.12117185,129.71,129.7,7.66]
[1743497693454,18.83067185,129.71,129.7,7.66]
[1743497694763,37.48032071,129.71,129.7,7.66]
[1743497695652,18.64964886,129.7,129.68,0.063]
[1743497695881,29.77082071,129.69,129.68,0.063]
[1743497696058,31.27422071,129.69,129.68,0.063]
[1743497697973,38.98482071,129.69,129.68,0.063]
[1743497698474,20.0,129.67,129.66,0.063]
[1743497698656,42.2423437,129.67,129.66,0.063]
[1743497699366,31.12117185,129.67,129.66,0.063]
[1743497700183,38.83297185,129.67,129.66,0.063]
[1743497701682,49.9541437,129.67,129.66,0.063]
[1743497702859,68.60379256,129.67,129.66,0.063]
[1743497703077,81.574,129.65,129.63,0.063]
[1743497703282,100.40877185,129.64,129.63,0.063]
[1743497704486,92.69517185,129.64,129.63,0.063]
[1743497705285,100.40877185,129.64,129.63,0.063]
[1743497705886,92.69517185,129.64,129.63,0.063]
[1743497706085,100.40877185,129.64,129.63,0.063]
[1743497706384,29.77082071,129.64,129.63,0.063]
[1743497706684,27.7121,129.67,129.63,0.063]
[1743497706873,11.12117185,129.65,129.63,0.063]
[1743497707270,11.12117185,129.64,129.63,0.063]
[1743497708363,11.12117185,129.65,129.63,0.34732314]
[1743497708586,11.12117185,129.68,129.64,20.0]
[1743497709284,0.03,129.69,129.67,20.0]
[1743497709464,0.03,129.69,129.68,7.94432314]
[1743497710686,11.15117185,129.69,129.68,7.66]
[1743497711390,18.86177185,129.69,129.68,7.66]
[1743497712384,37.51142071,129.69,129.68,7.66]
[1743497713565,20.0,129.66,129.64,7.66]
[1743497713795,11.12117185,129.65,129.64,7.66]
[1743497714087,11.12117185,129.67,129.64,7.66]
[1743497714387,11.12117185,129.68,129.65,20.28432314]
[1743497714562,11.15117185,129.69,129.65,20.28432314]
[1743497714972,11.12117185,129.68,129.65,20.28432314]
[1743497715489,92.82117185,129.68,129.65,20.28432314]
[1743497716194,11.12117185,129.66,129.65,7.66]
[1743497716488,11.12117185,129.66,129.65,7.723]
[1743497716885,11.12117185,129.66,129.65,0.063]
[1743497717069,11.12117185,129.66,129.65,7.723]
[1743497718969,92.82117185,129.67,129.65,7.723]
[1743497719171,81.7,129.67,129.65,27.723]
[1743497719386,81.7,129.67,129.66,0.28432314]
[1743497724893,0.03,129.69,129.68,0.28432314]
[1743497726108,81.7,129.68,129.67,20.0]
[1743497726414,92.82117185,129.68,129.67,20.0]
[1743497726908,82.6495871,129.68,129.67,20.0]
[1743497727412,71.52841525,129.68,129.67,20.0]
[1743497727793,82.6495871,129.68,129.67,20.0]
[1743497732001,71.52841525,129.68,129.67,20.28432314]
[1743497736404,71.52841525,129.68,129.67,20.0]
[1743497736405,82.6495871,129.68,129.67,20.0]
[1743497737403,90.3607871,129.68,129.67,20.0]
[1743497737903,18.83237185,129.68,129.67,7.66]
[1743497740893,18.83237185,129.68,129.65,7.723]
[1743497740894,20.0,129.66,129.65,7.723]
[1743497741203,42.2423437,129.66,129.65,7.723]
[1743497741404,60.89199256,129.66,129.65,0.063]
[1743497741595,68.60439256,129.66,129.65,0.063]
[1743497741790,49.9547437,129.66,129.65,0.063]
[1743497741997,68.60439256,129.66,129.65,0.063]
[1743497747912,18.64964886,129.65,129.63,0.063]
[1743497748113,11.12117185,129.64,129.63,0.063]
[1743497748303,29.77082071,129.64,129.63,0.063]
[1743497749107,111.47082071,129.64,129.63,0.063]
[1743497749417,119.18442071,129.64,129.63,0.063]
[1743497749616,20.15404886,129.63,129.61,0.063]
[1743497749793,40.89199256,129.62,129.61,0.063]
[1743497749999,29.77082071,129.62,129.61,0.063]
[1743497751117,31.12117185,129.62,129.61,0.063]
[1743497752708,11.12117185,129.62,129.61,0.063]
[1743497753013,11.12117185,129.63,129.61,0.063]
[1743497754116,11.18417185,129.66,129.61,20.34732314]
[1743497754117,0.063,129.66,129.61,20.34732314]
[1743497754415,0.063,129.66,129.64,0.28432314]
[1743497754416,11.18417185,129.66,129.64,0.28432314]
[1743497754719,11.18417185,129.66,129.65,7.64]
[1743497755497,0.063,129.66,129.65,7.64]
[1743497755701,31.18417185,129.66,129.65,7.64]
[1743497757912,11.18417185,129.66,129.65,27.92432314]
[1743497758099,0.063,129.66,129.65,27.92432314]
[1743497758426,11.18417185,129.66,129.65,7.64]
[1743497758622,0.063,129.66,129.65,7.92432314]
[1743497758810,0.063,129.66,129.65,27.92432314]
[1743497763337,11.18417185,129.66,129.65,7.64]
[1743497763839,11.18417185,129.66,129.65,7.67]
[1743497764042,18.89657185,129.66,129.65,7.67]
[1743497764735,38.89657185,129.66,129.65,7.67]
[1743497765407,38.89657185,129.66,129.65,0.03]
[1743497765607,38.89657185,129.66,129.65,7.67]
[1743497767026,38.89657185,129.66,129.65,0.03]
[1743497767326,38.89657185,129.66,129.65,7.67]
[1743497772629,31.18417185,129.66,129.65,7.67]
[1743497773337,0.063,129.66,129.65,7.67]
[1743497773622,0.063,129.66,129.65,27.95432314]
[1743497775929,20.063,129.66,129.65,27.95432314]
[1743497776142,27.19527351,129.66,129.65,7.67]
[1743497776738,34.32754702,129.66,129.65,7.67]
[1743497777028,27.19527351,129.66,129.65,7.67]
[1743497777439,34.90767351,129.66,129.65,7.67]
[1743497778230,53.55732237,129.66,129.65,7.67]
[1743497778432,82.08641641,129.66,129.65,0.03]
[1743497779730,68.7345591,129.66,129.65,0.03]
[1743497781423,57.57980398,129.66,129.65,0.03]
[1743497781932,37.57980398,129.66,129.65,0.03]
[1743497784534,11.21775512,129.66,129.65,0.03]
[1743497784727,0.063,129.66,129.65,0.03]
[1743497786520,11.21775512,129.66,129.65,0.03]
[1743497786716,0.063,129.66,129.65,0.03]
[1743497786916,0.063,129.66,129.65,0.31432314]
[1743497791418,11.21775512,129.66,129.65,0.03]
[1743497794222,11.21775512,129.66,129.65,7.65]
[1743497796846,0.063,129.66,129.65,7.93432314]
[1743497802955,0.063,129.66,129.65,34.296972]
[1743497803156,0.063,129.66,129.65,40.729472]
[1743497804232,0.063,129.66,129.65,14.36682314]
[1743497804957,0.063,129.66,129.65,7.93432314]
[1743497808267,11.20873978,129.66,129.65,7.65]
[1743497808558,11.20873978,129.66,129.65,0.03]
[1743497808749,11.20873978,129.66,129.65,7.65]
[1743497813144,11.20873978,129.66,129.65,0.03]
[1743497813483,11.20873978,129.66,129.65,7.65]
[1743497819170,0.063,129.66,129.65,7.93432314]
[1743497819765,0.063,129.66,129.65,7.65]
[1743497820265,11.20873978,129.66,129.65,7.65]
[1743497822073,0.063,129.66,129.65,7.65]
[1743497822455,0.063,129.66,129.65,7.93432314]
[1743497824952,11.20873978,129.66,129.65,7.65]
[1743497827672,7.19830859,129.66,129.65,7.65]
[1743497827870,14.91070859,129.66,129.65,7.65]
[1743497828177,7.19830859,129.66,129.65,7.65]
[1743497829578,7.19830859,129.66,129.65,0.03]
[1743497829755,7.19830859,129.66,129.63,0.03]
[1743497829756,120.31964886,129.64,129.63,0.03]
[1743497829958,127.45495745,129.64,129.63,0.03]
[1743497830855,135.16855745,129.64,129.63,0.03]
[1743497832658,53.49855745,129.64,129.63,0.03]
[1743497836266,81.763,129.66,129.63,0.31432314]
[1743497836461,7.13530859,129.65,129.63,0.31432314]
[1743497836876,88.89830859,129.66,129.63,0.31432314]
[1743497837080,81.763,129.66,129.64,20.0]
[1743497837483,88.89830859,129.66,129.64,20.0]
[1743497841089,88.89830859,129.66,129.63,0.31432314]
[1743497841090,7.13530859,129.65,129.63,0.31432314]
[1743497841277,7.13530859,129.64,129.63,0.03]
[1743497841581,7.13530859,129.64,129.63,7.63]
[1743497846297,7.13530859,129.65,129.63,7.63]
[1743497846483,7.19830859,129.66,129.64,20.28432314]
[1743497847073,0.063,129.66,129.64,20.28432314]
[1743497847488,0.063,129.65,129.64,20.28432314]
[1743497850887,0.063,129.65,129.64,46.647572]
[1743497851693,0.063,129.66,129.65,20.473072]
[1743497852905,0.063,129.66,129.65,28.186072]
[1743497854402,0.063,129.66,129.65,250.466072]
[1743497858098,0.063,129.66,129.65,224.10342314]
[1743497858801,7.19830859,129.66,129.64,20.0]
[1743497859104,0.063,129.66,129.65,0.28432314]
[1743497864505,11.20664613,129.66,129.64,20.0]
[1743497864709,11.14364613,129.65,129.64,20.0]
[1743497865012,11.14364613,129.65,129.64,27.6]
[1743497865698,11.20664613,129.66,129.64,27.6]
[1743497866704,11.20664613,129.66,129.64,7.6]
[1743497867912,81.7,129.65,129.64,7.6]
[1743497868290,81.7,129.65,129.63,0.03]
[1743497868608,81.7,129.65,129.63,7.63]
[1743497870511,89.4131,129.65,129.63,7.63]
[1743497870901,100.55674613,129.65,129.63,7.63]
[1743497875231,11.14364613,129.64,129.63,0.03]
[1743497875410,11.14364613,129.64,129.63,7.61]
[1743497877218,18.85724613,129.64,129.63,7.61]
[1743497877519,18.85724613,129.64,129.63,0.03]
[1743497879329,37.50689499,129.64,129.63,0.03]
[1743497881719,33.50312004,129.64,129.63,0.03]
[1743497882927,25.10194886,129.59,129.58,0.063]
[1743497883125,25.10194886,129.59,129.56,0.03]
[1743497883126,20.0,129.57,129.56,0.03]
[1743497883530,27.7178,129.57,129.56,0.03]
[1743497883825,38.88604565,129.57,129.56,0.03]
[1743497885227,57.53569451,129.57,129.56,0.03]
[1743497885435,11.16824565,129.56,129.54,0.063]
[1743497885723,29.2527,129.57,129.54,0.063]
[1743497885911,14.1691,129.59,129.55,0.28432314]
[1743497886115,11.16824565,129.59,129.56,20.0]
[1743497886314,11.16824565,129.6,129.58,20.0]
[1743497886503,11.16824565,129.59,129.57,7.58]
[1743497886830,11.16824565,129.58,129.57,7.58]
[1743497887622,11.16824565,129.59,129.57,7.72216157]
[1743497888131,11.16824565,129.6,129.58,20.14216157]
[1743497888533,11.16824565,129.6,129.59,7.58]
[1743497889029,11.16824565,129.61,129.59,7.58]
[1743497889422,11.16824565,129.62,129.59,7.58]
[1743497890323,89.4137,129.64,129.59,7.58]
[1743497890524,11.16824565,129.62,129.59,7.58]
[1743497891431,11.16824565,129.61,129.59,7.58]
[1743497892635,11.16824565,129.62,129.59,7.58]
[1743497893024,92.86824565,129.63,129.6,20.14216157]
[1743497893427,11.16824565,129.61,129.6,0.14216157]
[1743497894331,11.16824565,129.62,129.59,7.58]
[1743497894531,11.16824565,129.62,129.6,0.14216157]
[1743497895225,81.7,129.63,129.6,20.14216157]
[1743497895426,92.86824565,129.63,129.6,20.14216157]
[1743497895824,11.16824565,129.62,129.6,20.14216157]
[1743497896137,11.16824565,129.62,129.61,7.58]
[1743497896631,11.16824565,129.62,129.6,20.14216157]
[1743497896835,11.16824565,129.62,129.61,7.58]
[1743497897040,18.88304565,129.62,129.61,7.58]
[1743497897232,11.16824565,129.62,129.61,7.58]
[1743497897418,18.88304565,129.62,129.61,7.58]
[1743497897613,37.53269451,129.62,129.61,7.58]
[1743497898027,81.7,129.6,129.58,7.58]
[1743497898224,11.16824565,129.59,129.57,7.58]
[1743497898558,11.16824565,129.58,129.57,7.58]
[1743497898838,18.88544565,129.58,129.57,7.58]
[1743497899136,18.88544565,129.58,129.55,0.14216157]
[1743497899320,81.7,129.57,129.56,7.58]
[1743497899639,92.86824565,129.57,129.56,7.58]
[1743497900411,11.16824565,129.57,129.55,7.58]
[1743497900612,11.16824565,129.56,129.55,7.58]
[1743497901012,31.16824565,129.57,129.55,7.58]
[1743497901216,11.16824565,129.57,129.55,7.58]
[1743497901619,81.7,129.6,129.57,20.0]
[1743497901822,11.16824565,129.59,129.57,20.0]
[1743497902853,11.16824565,129.59,129.58,7.58]
[1743497903234,89.4172,129.58,129.54,20.063]
[1743497903553,81.7,129.57,129.56,20.14216157]
[1743497903850,81.7,129.57,129.56,20.28432314]
[1743497904827,7.7157,129.61,129.58,20.0]
[1743497904828,11.16824565,129.6,129.58,20.0]
[1743497905834,18.88444565,129.6,129.58,20.0]
[1743497906042,18.88444565,129.6,129.58,20.14216157]
[1743497906043,11.16824565,129.59,129.58,20.14216157]
[1743497906230,92.86824565,129.61,129.59,0.14216157]
[1743497906538,81.7,129.61,129.6,27.72216157]
[1743497907841,100.58364565,129.61,129.6,27.72216157]
[1743497908537,100.58364565,129.61,129.6,7.72216157]
[1743497909033,100.58364565,129.61,129.58,0.14216157]
[1743497909347,89.4154,129.61,129.6,7.58]
[1743497910131,81.7,129.61,129.6,7.58]
[1743497910454,92.86824565,129.61,129.6,7.58]
[1743497911746,100.58364565,129.61,129.6,7.58]
[1743497915041,111.7518913,129.61,129.6,7.58]
[1743497915233,20.0,129.58,129.55,0.17216157]
[1743497915434,11.16824565,129.56,129.55,0.17216157]
[1743497915747,18.88664565,129.56,129.55,7.75216157]
[1743497915944,18.88664565,129.56,129.55,7.61]
[1743497917450,92.86824565,129.57,129.56,20.14216157]
[1743497918331,92.86824565,129.57,129.56,0.14216157]
[1743497918530,100.58604565,129.57,129.55,7.61]
[1743497918730,11.16824565,129.56,129.55,7.61]
[1743497923737,11.16824565,129.56,129.55,7.75216157]
[1743497924655,81.7,129.57,129.55,7.75216157]
[1743497924832,11.16824565,129.56,129.55,7.75216157]
[1743497925035,11.16824565,129.56,129.55,7.61]
[1743497926461,18.88664565,129.56,129.55,7.61]
[1743497926645,11.16824565,129.56,129.55,7.61]
[1743497927534,18.88664565,129.56,129.55,7.61]
[1743497927739,14.86629091,129.56,129.55,7.61]
[1743497928362,14.86629091,129.56,129.55,0.03]
[1743497929242,33.51593977,129.56,129.55,0.03]
[1743497929442,18.64964886,129.55,129.54,0.063]
[1743497929637,54.38910341,129.55,129.54,0.063]
[1743497930042,54.38910341,129.55,129.53,0.063]
[1743497930364,54.38910341,129.54,129.53,0.063]
[1743497931385,20.0,129.51,129.5,0.03]
[1743497931558,27.14789091,129.51,129.5,0.03]
[1743497931739,31.17804871,129.51,129.5,0.03]
[1743497933166,38.89944871,129.51,129.5,0.03]
[1743497933674,31.17804871,129.51,129.5,0.03]
[1743497934656,26.36994886,129.53,129.5,0.03]
[1743497934863,11.17804871,129.51,129.5,0.03]
[1743497935363,18.89944871,129.51,129.5,0.03]
[1743497937845,38.89944871,129.51,129.5,0.03]
[1743497940954,11.17804871,129.51,129.5,0.03]
[1743497941467,0.063,129.56,129.5,20.17216157]
[1743497941468,11.17804871,129.52,129.5,20.17216157]
[1743497942181,0.063,129.56,129.52,20.0]
[1743497942466,11.17804871,129.54,129.52,20.0]
[1743497942865,0.063,129.56,129.53,0.28432314]
[1743497943052,11.24104871,129.56,129.55,20.14216157]
[1743497944943,11.24104871,129.56,129.54,7.56]
[1743497945147,11.17804871,129.55,129.53,20.0]
[1743497945372,11.17804871,129.54,129.51,20.14216157]
[1743497945578,81.7,129.55,129.52,0.14216157]
[1743497945871,11.17804871,129.53,129.52,0.14216157]
[1743497946369,81.7,129.55,129.52,0.14216157]
[1743497946673,0.063,129.56,129.55,0.14216157]
[1743497947055,0.063,129.56,129.55,0.28432314]
[1743497947587,28.01723397,129.62,129.61,20.14216157]
[1743497947749,0.063,129.62,129.61,27.70216157]
[1743497948159,0.063,129.62,129.61,27.84432314]
[1743497950248,11.24104871,129.62,129.61,27.70216157]
[1743497950449,11.24104871,129.62,129.61,7.70216157]
[1743497953574,18.95584871,129.62,129.61,7.56]
[1743497956874,18.95584871,129.62,129.58,0.14216157]
[1743497957074,81.7,129.61,129.59,7.56]
[1743497957275,11.17804871,129.6,129.59,7.56]
[1743497957471,18.89404871,129.6,129.59,7.56]
[1743497958457,30.07209742,129.6,129.59,7.56]
[1743497958764,81.7,129.59,129.58,7.56]
[1743497958960,11.17804871,129.59,129.58,7.56]
[1743497959359,11.17804871,129.59,129.55,20.0]
[1743497959360,18.89514871,129.59,129.55,20.0]
[1743497959677,81.7,129.58,129.56,7.56]
[1743497961579,89.4174,129.58,129.55,20.0]
[1743497961782,11.17804871,129.56,129.55,20.14216157]
[1743497961979,11.17804871,129.56,129.55,27.70216157]
[1743497964774,11.17804871,129.56,129.55,27.56]
[1743497964981,11.17804871,129.56,129.55,7.56]
[1743497965664,18.89644871,129.56,129.55,7.56]
[1743497966360,11.17804871,129.56,129.55,7.56]
[1743497967196,81.7,129.55,129.52,7.56]
[1743497967398,11.17804871,129.53,129.52,7.56]
[1743497968387,92.87804871,129.54,129.52,27.56]
[1743497969164,11.17804871,129.53,129.52,7.70216157]
[1743497972787,18.89824871,129.53,129.52,7.70216157]
[1743497974189,18.89824871,129.53,129.52,7.56]
[1743497975273,18.89824871,129.53,129.5,20.17216157]
[1743497975472,18.89824871,129.53,129.52,7.56]
[1743497975473,7.7202,129.53,129.52,7.56]
[1743497975778,18.89824871,129.53,129.52,7.56]
[1743497977073,20.0,129.51,129.5,0.03]
[1743497977270,49.82769757,129.51,129.5,0.03]
[1743497979285,57.54909757,129.51,129.5,0.03]
[1743497979969,31.17804871,129.51,129.5,0.03]
[1743497984191,11.17804871,129.51,129.5,0.03]
[1743497984383,25.9849,129.56,129.5,20.17216157]
[1743497984384,11.17804871,129.53,129.5,20.17216157]
[1743497984598,11.17804871,129.52,129.51,0.14216157]
[1743497984775,11.17804871,129.52,129.51,7.82432314]
[1743497985202,11.17804871,129.52,129.51,7.54]
[1743497990403,11.17804871,129.52,129.51,7.68216157]
[1743497990612,11.17804871,129.52,129.5,0.03]
[1743497990613,18.89914871,129.52,129.5,0.03]
[1743497990913,11.17804871,129.51,129.5,0.03]
[1743497991702,7.15220569,129.51,129.5,0.03]
[1743497993307,14.87360569,129.51,129.5,0.03]
[1743497993689,18.89759412,129.51,129.5,0.03]
[1743497998304,18.89759412,129.51,129.49,0.063]
[1743497998630,11.17619412,129.5,129.49,0.063]
[1743497999621,18.89819412,129.5,129.49,0.063]
[1743498000522,18.89819412,129.5,129.48,7.603]
[1743498000821,22.35238824,129.49,129.46,0.14216157]
[1743498001115,11.17619412,129.47,129.46,0.14216157]
[1743498001329,11.17619412,129.47,129.46,20.14216157]
[1743498001510,11.17619412,129.48,129.46,20.14216157]
[1743498001895,11.17619412,129.48,129.47,7.68216157]
[1743498002099,7.7214,129.51,129.48,20.14216157]
[1743498002295,11.17619412,129.5,129.48,20.14216157]
[1743498003698,11.17619412,129.5,129.49,0.03]
[1743498005432,7.7212,129.52,129.49,0.03]
[1743498005606,11.17619412,129.51,129.5,20.14216157]
[1743498006224,11.17619412,129.51,129.5,20.28432314]
[1743498006426,11.17619412,129.52,129.51,0.14216157]